bitfinex/quotes_SOLUSD_20220114
["timestamp","ask_amount","ask_price","bid_price","bid_amount"]
[1642127862636,1.92238703,147.57,147.48,49.2434]
[1642127862840,2.711,147.56,147.48,49.2434]
[1642127863041,2.961,147.56,147.48,49.2434]
[1642127863536,2.961,147.56,147.48,49.2432]
[1642127863736,2.961,147.56,147.48,32.826]
[1642127864238,1.92238703,147.55,147.48,32.826]
[1642127864439,1.92238703,147.55,147.48,9.78]
[1642127864638,2.17238703,147.55,147.48,9.78]
[1642127865039,2.17238703,147.55,147.48,10.03]
[1642127865441,1.92238703,147.54,147.48,10.03]
[1642127866241,2.17238703,147.54,147.48,9.78]
[1642127866442,2.17238703,147.54,147.48,10.03]
[1642127866641,2.711,147.53,147.48,10.03]
[1642127867041,2.961,147.53,147.48,10.03]
[1642127867841,2.961,147.53,147.44,11.57967899]
[1642127868041,4.88338703,147.53,147.45,0.25]
[1642127868243,2.17238703,147.53,147.45,0.25]
[1642127868445,10.1716,147.51,147.45,0.25]
[1642127868844,2.17238703,147.51,147.45,0.25]
[1642127869145,2.17238703,147.51,147.44,0.25]
[1642127869572,2.17238703,147.51,147.42,43.26997899]
[1642127869745,2.712,147.5,147.42,40.55797899]
[1642127869944,0.25,147.5,147.44,10.17]
[1642127870744,0.25,147.5,147.42,40.55797899]
[1642127870950,2.962,147.5,147.42,50.97897899]
[1642127871245,2.712,147.5,147.42,39.0083]
[1642127871448,2.962,147.5,147.42,38.7583]
[1642127871648,2.962,147.5,147.42,9.78]
[1642127871849,11.027,147.5,147.42,9.78]
[1642127872048,17.027,147.5,147.42,8.28]
[1642127872252,29.12158703,147.5,147.4,4.51167899]
[1642127872549,29.12158703,147.5,147.4,1.79967899]
[1642127872953,79.31999521,147.49,147.4,1.79967899]
[1642127873153,2.712,147.48,147.4,1.79967899]
[1642127873354,4.36199521,147.48,147.4,1.79967899]
[1642127873557,4.61199521,147.48,147.4,1.79967899]
[1642127873953,1.92238703,147.47,147.38,1.79967899]
[1642127874153,10.178,147.45,147.38,1.79967899]
[1642127874353,2.713,147.44,147.38,1.79967899]
[1642127874552,2.963,147.44,147.38,1.79967899]
[1642127874755,0.25,147.44,147.38,1.79967899]
[1642127874956,4.63538703,147.43,147.34,44.95378464]
[1642127875155,4.63538703,147.43,147.34,41.38032448]
[1642127875355,4.88538703,147.43,147.34,41.38032448]
[1642127875755,2.17238703,147.43,147.34,1.79967899]
[1642127875955,12.8908,147.42,147.34,1.79967899]
[1642127876356,13.1408,147.42,147.34,1.79967899]
[1642127876757,13.1408,147.42,147.34,33.13532729]
[1642127876960,2.963,147.42,147.34,43.31202729]
[1642127877258,2.963,147.42,147.34,41.5123483]
[1642127877259,1.92238703,147.41,147.34,41.5123483]
[1642127877558,2.17238703,147.41,147.34,41.5123483]
[1642127877959,1.92238703,147.41,147.34,41.7623483]
[1642127878159,1.92238703,147.41,147.34,47.7623483]
[1642127878458,1.92238703,147.41,147.38,10.1741]
[1642127878661,1.92238703,147.41,147.35,2.714]
[1642127878959,4.63638703,147.43,147.35,0.25]
[1642127879158,1.92238703,147.43,147.35,0.25]
[1642127879360,2.713,147.42,147.35,0.25]
[1642127879663,4.63538703,147.42,147.35,10.4261]
[1642127879959,1.92238703,147.42,147.35,10.4261]
[1642127880362,1.92238703,147.42,147.35,16.4261]
[1642127880565,1.92238703,147.42,147.35,26.4661]
[1642127880760,1.92238703,147.43,147.35,26.4661]
[1642127880961,1.92238703,147.43,147.36,67.89]
[1642127881163,1.92238703,147.43,147.37,9.78]
[1642127881361,1.92238703,147.43,147.4,10.1701]
[1642127881560,1.92238703,147.43,147.41,29.47689362]
[1642127881760,1.92238703,147.43,147.39,43.6801]
[1642127881961,1.92238703,147.43,147.39,34.1501]
[1642127882163,1.92238703,147.47,147.39,34.1501]
[1642127882360,2.713,147.46,147.4,10.1718]
[1642127882562,2.963,147.46,147.4,10.1718]
[1642127883861,2.963,147.46,147.39,0.25]
[1642127884061,1.92238703,147.45,147.38,0.25]
[1642127884589,2.17238703,147.45,147.36,76.37157725]
[1642127884791,2.713,147.44,147.36,76.37157725]
[1642127884992,2.963,147.44,147.36,76.37157725]
[1642127885190,2.963,147.44,147.39,10.1726]
[1642127885390,2.963,147.44,147.36,36.46587725]
[1642127885789,2.713,147.44,147.36,42.46587725]
[1642127885990,2.963,147.44,147.36,42.46587725]
[1642127886393,2.963,147.44,147.36,34.66619826]
[1642127886992,2.963,147.44,147.36,34.91619826]
[1642127887192,2.963,147.44,147.37,10.1735]
[1642127887394,4.88538703,147.44,147.37,10.1735]
[1642127887593,2.17238703,147.44,147.37,10.4235]
[1642127888595,2.17238703,147.44,147.37,0.25]
[1642127889000,2.713,147.43,147.36,34.91619826]
[1642127889194,2.713,147.43,147.36,10.03]
[1642127889395,2.963,147.43,147.36,10.03]
[1642127889794,2.963,147.43,147.36,0.25]
[1642127889995,2.963,147.43,147.35,2.04967899]
[1642127890596,4.88538703,147.43,147.35,0.25]
[1642127890795,2.17238703,147.43,147.35,0.25]
[1642127890995,2.17238703,147.43,147.34,1.79967899]
[1642127891197,2.17238703,147.43,147.34,7.79967899]
[1642127891798,1.64999521,147.42,147.34,1.79967899]
[1642127891996,2.714,147.41,147.34,1.79967899]
[1642127892396,10.61399521,147.41,147.34,1.79967899]
[1642127892597,4.61399521,147.41,147.33,1.79967899]
[1642127893197,2.964,147.41,147.33,1.79967899]
[1642127893399,4.88638703,147.41,147.32,1.79967899]
[1642127893598,2.17238703,147.41,147.32,1.79967899]
[1642127893800,2.714,147.4,147.32,2.04967899]
[1642127894002,2.964,147.4,147.32,2.04967899]
[1642127894600,2.714,147.4,147.32,2.04967899]
[1642127894800,4.63638703,147.41,147.32,2.04967899]
[1642127895001,2.17238703,147.41,147.32,2.04967899]
[1642127895201,2.17238703,147.41,147.32,12.22707899]
[1642127896504,0.25,147.41,147.32,18.22707899]
[1642127896702,4.88638703,147.42,147.32,18.22707899]
[1642127896902,2.17238703,147.42,147.33,2.714]
[1642127897103,2.17238703,147.42,147.34,10.1757]
[1642127897401,2.17238703,147.42,147.35,28.94578319]
[1642127897802,0.25,147.42,147.35,29.19578319]
[1642127898003,2.964,147.43,147.35,29.19578319]
[1642127898606,2.964,147.43,147.35,39.37098319]
[1642127899705,2.964,147.43,147.35,41.17066218]
[1642127899916,2.964,147.43,147.35,30.99546218]
[1642127900507,2.714,147.43,147.35,30.99546218]
[1642127900709,2.714,147.43,147.35,40.77546218]
[1642127900913,1.92238703,147.44,147.36,67.89]
[1642127901109,1.92238703,147.44,147.37,9.78]
[1642127901609,1.92238703,147.44,147.37,16.29]
[1642127901811,6.59770393,147.47,147.37,16.29]
[1642127901812,1.92238703,147.45,147.37,16.29]
[1642127902011,1.92238703,147.45,147.37,26.4634]
[1642127902711,8.703e-05,147.45,147.37,26.4634]
[1642127902911,8.703e-05,147.45,147.38,2.713]
[1642127903110,8.703e-05,147.45,147.39,9.78]
[1642127903341,8.703e-05,147.45,147.4,2.713]
[1642127903513,3.88470393,147.5,147.41,27.73110676]
[1642127903715,3.88470393,147.5,147.41,51.74480676]
[1642127903911,3.88470393,147.5,147.41,58.25480676]
[1642127904112,4.13470393,147.5,147.41,68.42590676]
[1642127904512,3.88470393,147.5,147.41,68.42590676]
[1642127904714,2.713,147.51,147.41,68.42590676]
[1642127906020,2.963,147.51,147.41,68.42590676]
[1642127906817,13.1347,147.51,147.41,68.16590676]
[1642127907014,13.1347,147.51,147.41,57.99480676]
[1642127907914,13.1347,147.51,147.41,57.74480676]
[1642127908114,13.1347,147.51,147.41,58.00480676]
[1642127909213,13.1347,147.51,147.41,68.17570676]
[1642127909417,13.1347,147.51,147.41,68.42570676]
[1642127909615,2.963,147.51,147.41,139.02770676]
[1642127909814,2.963,147.51,147.42,9.78]
[1642127910014,2.963,147.51,147.42,16.29]
[1642127910216,2.963,147.51,147.43,10.1699]
[1642127910419,2.713,147.51,147.43,20.1999]
[1642127910614,2.713,147.51,147.43,26.4599]
[1642127911218,3.88470393,147.54,147.43,26.4599]
[1642127911415,2.712,147.53,147.43,26.4599]
[1642127911817,2.712,147.53,147.44,67.89]
[1642127912019,2.712,147.53,147.45,19.9481]
[1642127912415,2.712,147.53,147.45,16.03]
[1642127912917,2.712,147.53,147.45,9.78]
[1642127913118,1.64999521,147.52,147.41,34.0245]
[1642127913317,2.712,147.51,147.41,34.0245]
[1642127913519,10.1739,147.48,147.41,9.78]
[1642127913720,18.4729,147.48,147.39,26.59036016]
[1642127913919,2.713,147.47,147.37,3.57346016]
[1642127914120,33.925,147.46,147.37,3.57346016]
[1642127914320,2.713,147.45,147.37,3.57346016]
[1642127914523,2.963,147.45,147.37,3.57346016]
[1642127915325,0.25,147.45,147.37,0.51]
[1642127915522,6.84770393,147.47,147.36,10.29]
[1642127915723,6.84770393,147.47,147.36,16.29]
[1642127916526,2.963,147.47,147.36,16.29]
[1642127917128,10.1752,147.46,147.36,16.29]
[1642127917328,2.713,147.45,147.36,16.29]
[1642127917527,2.963,147.45,147.36,16.29]
[1642127917726,0.25,147.45,147.36,16.29]
[1642127917926,2.713,147.44,147.36,16.29]
[1642127918127,0.25,147.46,147.36,16.29]
[1642127918355,2.713,147.45,147.36,10.29]
[1642127918528,2.963,147.45,147.36,16.29]
[1642127918827,2.963,147.45,147.36,10.29]
[1642127919028,0.25,147.45,147.36,10.29]
[1642127919227,12.8894,147.44,147.36,10.29]
[1642127919428,12.8894,147.44,147.36,10.03]
[1642127919630,13.1394,147.44,147.36,10.03]
[1642127924441,2.713,147.45,147.36,16.29]
[1642127924647,10.1755,147.46,147.36,19.003]
[1642127924840,2.713,147.45,147.36,16.29]
[1642127925040,2.713,147.45,147.36,19.003]
[1642127925442,12.8888,147.45,147.36,19.003]
[1642127925643,12.8888,147.45,147.36,16.03]
[1642127925872,13.1388,147.45,147.36,10.03]
[1642127926272,13.1388,147.45,147.36,9.78]
[1642127926472,19.1388,147.45,147.36,9.78]
[1642127926872,19.1388,147.45,147.33,12.493]
[1642127927073,1.64999521,147.44,147.32,3.57346016]
[1642127927275,10.1808,147.38,147.32,3.57346016]
[1642127927473,2.714,147.37,147.32,3.57346016]
[1642127927872,2.964,147.37,147.3,51.07156016]
[1642127928274,10.1813,147.37,147.3,51.07156016]
[1642127928474,10.4313,147.37,147.3,51.07156016]
[1642127928873,10.4313,147.37,147.3,47.4981]
[1642127929475,10.4313,147.37,147.29,9.78]
[1642127929672,2.714,147.36,147.29,9.78]
[1642127929876,12.8959,147.36,147.29,9.78]
[1642127930275,2.715,147.4,147.29,9.78]
[1642127930472,2.965,147.4,147.29,10.03]
[1642127930876,2.965,147.4,147.29,13.004]
[1642127931075,2.965,147.4,147.29,37.4138]
[1642127931476,2.965,147.4,147.29,37.1538]
[1642127932181,10.181,147.38,147.29,37.1538]
[1642127932378,2.714,147.37,147.29,37.4138]
[1642127932578,2.964,147.37,147.29,53.5935]
[1642127932781,0.25,147.37,147.29,53.5935]
[1642127932977,2.714,147.41,147.29,53.5935]
[1642127933382,2.964,147.41,147.29,53.5935]
[1642127933578,0.25,147.41,147.29,53.5935]
[1642127933778,2.714,147.4,147.29,53.5935]
[1642127933978,2.964,147.4,147.29,53.5935]
[1642127934178,13.1437,147.4,147.29,53.5935]
[1642127934377,10.4297,147.4,147.29,50.8795]
[1642127934578,2.714,147.39,147.29,50.8795]
[1642127934980,2.964,147.39,147.29,50.8795]
[1642127935177,0.25,147.39,147.29,50.8795]
[1642127935378,2.714,147.38,147.29,50.8795]
[1642127935581,2.964,147.38,147.29,50.8795]
[1642127935980,2.714,147.41,147.29,50.8795]
[1642127936188,12.893,147.41,147.29,118.7695]
[1642127936379,13.143,147.41,147.29,120.41949521]
[1642127936582,10.179,147.41,147.29,120.41949521]
[1642127937183,12.8915,147.43,147.29,120.41949521]
[1642127937382,12.8915,147.43,147.31,67.89]
[1642127937586,12.8915,147.43,147.32,47.3558]
[1642127937782,12.8915,147.43,147.32,34.4638]
[1642127937981,12.8915,147.43,147.32,40.9738]
[1642127938183,12.8915,147.43,147.32,34.9738]
[1642127938787,13.1415,147.43,147.32,34.9738]
[1642127938987,19.1415,147.43,147.32,34.9738]
[1642127941091,19.1415,147.43,147.32,34.4638]
[1642127941294,19.1415,147.43,147.32,24.6838]
[1642127942494,19.1415,147.43,147.32,24.9338]
[1642127943990,19.1415,147.43,147.32,24.6838]
[1642127945022,18.8915,147.43,147.32,24.9438]
[1642127945319,12.8915,147.43,147.32,27.6578]
[1642127945519,12.8915,147.43,147.32,27.9078]
[1642127946320,13.1415,147.43,147.32,27.9078]
[1642127946722,13.1415,147.43,147.32,27.3978]
[1642127946918,13.1415,147.43,147.32,27.6478]
[1642127947119,13.1415,147.43,147.32,27.3978]
[1642127947321,11.42999521,147.42,147.32,2.714]
[1642127947521,10.1829,147.37,147.32,2.714]
[1642127947721,2.714,147.36,147.32,2.714]
[1642127948121,2.964,147.36,147.32,2.714]
[1642127948823,0.25,147.36,147.32,2.714]
[1642127949021,2.714,147.35,147.32,2.714]
[1642127949222,16.24884211,147.34,147.32,2.714]
[1642127949624,16.49884211,147.34,147.32,2.714]
[1642127950522,1.69411126,147.33,147.25,28.02896016]
[1642127950725,11.87841126,147.33,147.25,28.27896016]
[1642127950926,12.12841126,147.33,147.25,28.27896016]
[1642127951525,12.12841126,147.33,147.25,24.7055]
[1642127952729,12.12841126,147.33,147.25,24.9655]
[1642127952930,12.12841126,147.33,147.25,30.9655]
[1642127953131,12.12841126,147.33,147.25,30.7055]
[1642127953733,1.94411126,147.33,147.25,30.7055]
[1642127953933,1.69411126,147.33,147.25,41.1483]
[1642127954432,1.69411126,147.33,147.26,2.715]
[1642127954833,1.69411126,147.33,147.26,19.4069]
[1642127955031,1.94411126,147.33,147.26,0.51]
[1642127955432,1.94411126,147.33,147.26,0.25]
[1642127956036,1.94411126,147.33,147.26,10.1819]
[1642127956434,1.94411126,147.33,147.26,10.6919]
[1642127956634,1.94411126,147.33,147.26,0.51]
[1642127957036,1.94411126,147.33,147.26,0.25]
[1642127957433,1.94411126,147.33,147.25,30.9655]
[1642127957935,1.94411126,147.33,147.21,5.40508438]
[1642127957936,46.0,147.31,147.21,5.40508438]
[1642127958136,12.496,147.3,147.2,5.40508438]
[1642127958337,18.041,147.3,147.2,5.40508438]
[1642127958539,86.181,147.3,147.2,5.40508438]
[1642127959236,10.1904,147.28,147.16,31.81102377]
[1642127959437,12.497,147.27,147.16,31.81102377]
[1642127959637,17.906,147.27,147.16,31.81102377]
[1642127959838,24.156,147.27,147.16,31.81102377]
[1642127960738,24.156,147.27,147.16,32.06102377]
[1642127960944,10.1898,147.25,147.16,32.06102377]
[1642127961242,18.5828,147.25,147.16,32.06102377]
[1642127961440,2.717,147.24,147.16,32.06102377]
[1642127962440,2.967,147.24,147.16,32.06102377]
[1642127963241,10.4408,147.24,147.16,32.06102377]
[1642127963440,2.717,147.23,147.16,32.06102377]
[1642127963642,2.717,147.26,147.16,32.06102377]
[1642127963844,12.497,147.26,147.16,32.06102377]
[1642127964042,12.747,147.26,147.16,32.06102377]
[1642127964443,10.191,147.23,147.16,31.81102377]
[1642127964644,2.717,147.22,147.16,31.81102377]
[1642127964844,2.717,147.25,147.17,2.717]
[1642127965047,10.03,147.26,147.16,31.81102377]
[1642127966048,10.03,147.26,147.17,3.89266917]
[1642127966347,10.1901,147.25,147.17,3.89266917]
[1642127966547,10.4401,147.25,147.17,3.89266917]
[1642127967155,10.4401,147.25,147.16,32.07102377]
[1642127967351,2.717,147.24,147.16,32.07102377]
[1642127967548,2.967,147.24,147.16,32.07102377]
[1642127967948,2.967,147.24,147.16,32.32102377]
[1642127968650,2.717,147.24,147.16,32.32102377]
[1642127968856,10.1886,147.27,147.17,70.607]
[1642127969051,2.717,147.28,147.17,94.3164]
[1642127969252,2.716,147.29,147.17,100.3164]
[1642127969451,2.716,147.29,147.18,3.89249875]
[1642127969753,2.716,147.29,147.19,2.716]
[1642127969951,2.716,147.29,147.19,29.707]
[1642127970156,12.9033,147.29,147.19,23.707]
[1642127971283,12.9033,147.29,147.19,91.597]
[1642127971484,13.1533,147.29,147.19,97.347]
[1642127972278,13.1533,147.29,147.19,29.457]
[1642127972480,13.1533,147.29,147.19,23.457]
[1642127972882,13.1533,147.29,147.19,23.197]
[1642127973088,28.9333,147.29,147.19,23.197]
[1642127977687,28.9333,147.29,147.16,31.81102377]
[1642127977988,52.3312,147.29,147.16,32.06102377]
[1642127978187,60.0092,147.29,147.16,0.25]
[1642127978988,60.0092,147.29,147.15,24.2586]
[1642127979187,60.0092,147.29,147.16,25.00733697]
[1642127979389,52.3312,147.29,147.16,25.00733697]
[1642127979587,52.3312,147.29,147.17,24.1752]
[1642127979987,52.3312,147.29,147.17,24.4252]
[1642127980488,52.3312,147.29,147.17,24.6852]
[1642127980888,52.3312,147.29,147.17,24.4252]
[1642127982990,52.3312,147.29,147.17,0.25]
[1642127983189,52.3312,147.29,147.15,2.716]
[1642127983392,8.14086,147.28,147.13,26.6483]
[1642127983590,10.194,147.21,147.14,0.25]
[1642127983790,16.587,147.21,147.14,0.25]
[1642127983990,16.837,147.21,147.14,0.25]
[1642127984594,16.837,147.21,147.13,24.1813]
[1642127984792,16.837,147.21,147.13,23.9313]
[1642127984993,16.837,147.21,147.12,3.9690724]
[1642127985194,10.1945,147.18,147.12,1.2520724]
[1642127985595,10.4445,147.18,147.12,1.2520724]
[1642127986194,2.718,147.17,147.12,1.2520724]
[1642127986594,2.968,147.17,147.12,1.2520724]
[1642127986993,10.1963,147.16,147.12,1.2520724]
[1642127987205,2.718,147.15,147.12,1.2520724]
[1642127987397,6.06434211,147.14,147.12,1.2520724]
[1642127987799,6.31434211,147.14,147.12,1.2520724]
[1642127988198,9.03234211,147.14,147.12,1.2520724]
[1642127989098,19.23024211,147.14,147.12,1.2520724]
[1642127990730,16.51224211,147.14,147.12,1.2520724]
[1642127993233,16.26224211,147.14,147.12,1.2520724]
[1642127993635,16.51224211,147.14,147.12,1.2520724]
[1642127993833,16.26224211,147.14,147.12,1.2520724]
[1642127994033,6.06434211,147.14,147.12,1.2520724]
[1642127994635,6.06434211,147.14,147.12,25.19239215]
[1642127994839,2.718,147.2,147.12,1.2520724]
[1642127995037,0.25,147.2,147.12,1.5020724]
[1642127995236,2.718,147.19,147.12,1.5020724]
[1642127995437,0.25,147.2,147.12,1.5020724]
[1642127995639,0.25,147.19,147.12,1.5020724]
[1642127995837,0.25,147.2,147.12,1.5020724]
[1642127996237,0.25,147.2,147.12,7.5020724]
[1642127996737,2.718,147.19,147.12,1.5020724]
[1642127996939,0.25,147.19,147.12,1.5020724]
[1642127997140,12.9105,147.21,147.12,1.5020724]
[1642127997341,13.1605,147.21,147.12,1.5020724]
[1642127998437,12.9105,147.21,147.12,1.5020724]
[1642127999942,13.1605,147.21,147.12,1.5020724]
[1642128002243,13.1605,147.21,147.12,1.2520724]
[1642128003542,13.1605,147.21,147.12,1.5020724]
[1642128004142,12.9105,147.21,147.12,1.5020724]
[1642128004543,12.9105,147.21,147.12,0.25]
[1642128004742,12.9105,147.21,147.11,25.1205]
[1642128004944,10.1925,147.21,147.11,27.8385]
[1642128005442,10.4425,147.21,147.11,27.8385]
[1642128006249,10.4425,147.21,147.11,44.2908]
[1642128007346,0.25,147.21,147.12,9.78]
[1642128007547,0.25,147.23,147.14,10.19]
[1642128007752,2.717,147.26,147.16,26.54618095]
[1642128007948,2.717,147.26,147.17,23.0112]
[1642128008149,411.23854418,147.27,147.17,90.9012]
[1642128008382,411.23854418,147.27,147.17,97.4112]
[1642128008550,421.42724418,147.27,147.18,10.1876]
[1642128008850,421.42724418,147.27,147.18,10.4476]
[1642128009053,421.42724418,147.27,147.18,16.6976]
[1642128009054,421.67724418,147.27,147.18,16.6976]
[1642128009450,418.96024418,147.27,147.18,16.6976]
[1642128009656,10.4387,147.27,147.18,16.6976]
[1642128009852,0.25,147.27,147.18,16.6976]
[1642128010053,2.966,147.28,147.18,16.6976]
[1642128011353,2.966,147.28,147.19,1.2520724]
[1642128011554,2.966,147.28,147.19,7.7620724]
[1642128011753,2.966,147.28,147.19,30.9938724]
[1642128011953,2.966,147.28,147.19,41.1808724]
[1642128012556,2.716,147.28,147.19,41.1808724]
[1642128012756,2.716,147.3,147.19,41.1808724]
[1642128012955,8.716,147.3,147.19,109.0708724]
[1642128013154,2.716,147.3,147.19,109.0708724]
[1642128013955,2.716,147.3,147.25,1.2520724]
[1642128014254,8.716,147.3,147.25,1.2520724]
[1642128014954,2.966,147.3,147.25,1.2520724]
[1642128015883,2.716,147.32,147.25,1.2520724]
[1642128016054,2.716,147.32,147.25,7.7620724]
[1642128017056,2.966,147.32,147.25,7.7620724]
[1642128017256,0.25,147.32,147.25,17.9448724]
[1642128017456,4.65911126,147.33,147.25,17.9448724]
[1642128017655,1.94411126,147.33,147.25,17.9448724]
[1642128018464,1.69411126,147.33,147.25,17.9448724]
[1642128019964,1.94411126,147.33,147.25,17.9448724]
[1642128020570,1.94411126,147.33,147.25,17.6848724]
[1642128021867,1.94411126,147.33,147.25,17.9448724]
[1642128023168,3.79782525,147.33,147.25,17.9448724]
[1642128025093,3.79782525,147.33,147.25,17.6848724]
[1642128025294,2.715,147.32,147.25,1.5020724]
[1642128025497,2.965,147.32,147.31,1.2520724]
[1642128025895,4.81871399,147.32,147.31,1.2520724]
[1642128026696,1.85371399,147.32,147.31,1.2520724]
[1642128026896,3.54782525,147.33,147.31,1.2520724]
[1642128027194,3.79782525,147.33,147.31,1.2520724]
[1642128027795,1.94411126,147.33,147.31,1.2520724]
[1642128029297,4.65911126,147.33,147.31,1.2520724]
[1642128029697,14.84311126,147.33,147.31,1.2520724]
[1642128029899,16.69682525,147.33,147.31,1.2520724]
[1642128030901,1.85371399,147.32,147.31,1.2520724]
[1642128031104,2.10371399,147.32,147.31,1.2520724]
[1642128031806,1.85371399,147.32,147.31,1.2520724]
[1642128032209,1.85371399,147.32,147.31,7.56213023]
[1642128032611,3.54782525,147.33,147.31,13.56213023]
[1642128033213,3.54782525,147.33,147.31,44.95420596]
[1642128033412,1.69411126,147.33,147.31,44.95420596]
[1642128033812,1.69411126,147.33,147.31,44.70420596]
[1642128034012,1.69411126,147.33,147.31,44.95420596]
[1642128034415,1.69411126,147.33,147.31,45.21420596]
[1642128034653,1.69411126,147.33,147.31,55.39290596]
[1642128035643,1.126e-05,147.33,147.32,50.0]
[1642128035847,1.85371399,147.36,147.33,31.0]
[1642128036045,1.85371399,147.36,147.33,105.4]
[1642128036444,0.00371399,147.37,147.33,105.4]
[1642128036644,0.00371399,147.37,147.35,67.89]
[1642128037047,0.00371399,147.37,147.35,74.4]
[1642128037245,2.714,147.46,147.36,6.06005783]
[1642128037445,2.714,147.46,147.36,12.57005783]
[1642128037646,2.714,147.46,147.37,36.15787691]
[1642128038045,2.714,147.46,147.37,42.66787691]
[1642128038046,3.83865479,147.45,147.37,42.66787691]
[1642128039848,3.83865479,147.45,147.37,16.6845]
[1642128040246,4.08865479,147.45,147.37,16.6845]
[1642128042152,0.25,147.45,147.37,16.6845]
[1642128042349,13.139,147.46,147.37,16.6845]
[1642128042550,10.425,147.46,147.37,16.6845]
[1642128042749,10.425,147.46,147.37,40.8713]
[1642128042951,3.8565166,147.45,147.37,30.4368]
[1642128043151,10.1765,147.44,147.36,9.78]
[1642128043350,10.1765,147.44,147.36,10.03]
[1642128043351,2.713,147.43,147.36,10.03]
[1642128043552,2.713,147.43,147.36,16.03]
[1642128043754,3.8565166,147.43,147.36,16.03]
[1642128043954,4.1065166,147.43,147.36,16.03]
[1642128044553,13.0315442,147.43,147.36,16.03]
[1642128044753,10.4271,147.43,147.36,16.03]
[1642128045153,10.1771,147.43,147.36,16.03]
[1642128045354,10.4271,147.43,147.36,16.03]
[1642128045653,10.1771,147.43,147.36,16.03]
[1642128046653,10.1771,147.43,147.36,10.03]
[1642128047055,12.8891,147.45,147.36,16.29]
[1642128047454,8.963,147.45,147.36,16.29]
[1642128047954,2.963,147.45,147.36,16.29]
[1642128048157,13.1387,147.45,147.36,26.4652]
[1642128048355,10.4257,147.45,147.36,26.4652]
[1642128048758,0.25,147.45,147.36,26.4652]
[1642128048956,3.88900403,147.45,147.36,26.4652]
[1642128049356,4.13900403,147.45,147.36,26.4652]
[1642128051057,4.13900403,147.45,147.37,67.89]
[1642128051261,4.13900403,147.45,147.38,10.1738]
[1642128051459,4.13900403,147.45,147.38,16.6838]
[1642128052458,0.25,147.45,147.38,16.6838]
[1642128052962,4.13900403,147.46,147.38,16.6838]
[1642128053163,4.13900403,147.46,147.38,6.25]
[1642128053390,4.13900403,147.46,147.38,0.25]
[1642128053563,14.31400403,147.46,147.38,6.26]
[1642128053966,14.31400403,147.46,147.38,0.25]
[1642128054364,6.60200403,147.45,147.38,0.25]
[1642128054564,14.06480403,147.45,147.38,0.25]
[1642128054964,14.06480403,147.45,147.36,40.8553]
[1642128055165,10.1758,147.45,147.37,2.713]
[1642128055466,10.1758,147.45,147.37,9.223]
[1642128055665,4.13900403,147.46,147.37,19.3974]
[1642128055865,4.13900403,147.46,147.37,87.2874]
[1642128057567,14.31410403,147.46,147.37,77.113]
[1642128058367,4.13900403,147.46,147.37,77.113]
[1642128059169,4.13900403,147.46,147.37,87.2873]
[1642128062175,4.13900403,147.46,147.37,9.223]
[1642128062375,14.31410403,147.46,147.37,2.713]
[1642128062573,2.713,147.45,147.36,2.713]
[1642128062772,10.341,147.45,147.36,2.713]
[1642128062972,16.591,147.45,147.36,2.713]
[1642128063174,16.591,147.45,147.36,8.973]
[1642128063573,10.591,147.45,147.37,23.23167553]
[1642128063873,2.963,147.45,147.37,23.23167553]
[1642128064074,2.963,147.45,147.37,29.48167553]
[1642128064476,2.713,147.45,147.37,29.48167553]
[1642128064673,9.88900403,147.45,147.37,29.48167553]
[1642128064882,9.88900403,147.45,147.37,29.74167553]
[1642128065283,6.0,147.45,147.37,29.74167553]